bitfinex/quotes_SOLUSD_20230110
["timestamp","ask_amount","ask_price","bid_price","bid_amount"]
[1673318844612,20.0,15.778,15.756,3.13458952]
[1673318844826,20.0,15.778,15.755,20.0]
[1673318844827,21.43,15.777,15.755,20.0]
[1673318845022,20.0,15.776,15.756,17.0]
[1673318845661,20.0,15.778,15.757,3.15166245]
[1673318845876,21.33,15.777,15.757,20.15166245]
[1673318846082,21.33,15.777,15.757,17.0]
[1673318846300,20.0,15.776,15.755,20.0]
[1673318846496,20.0,15.776,15.757,3.20929202]
[1673318846924,20.0,15.778,15.757,3.20929202]
[1673318847143,21.16,15.777,15.757,3.20929202]
[1673318847334,108.1103,15.783,15.757,43.20929202]
[1673318847335,21.16,15.779,15.757,43.20929202]
[1673318847547,20.0,15.782,15.759,4.01075009]
[1673318847773,20.0,15.782,15.761,4.01075009]
[1673318847980,20.0,15.782,15.763,4.01075009]
[1673318848201,140.9515,15.789,15.766,4.01075009]
[1673318848406,25.364297,15.782,15.766,21.01075009]
[1673318849023,25.364297,15.782,15.766,4.01075009]
[1673318849238,25.364297,15.782,15.763,4.01075009]
[1673318849456,25.364297,15.782,15.763,21.01075009]
[1673318850709,25.364297,15.782,15.766,4.01075009]
[1673318850919,25.364297,15.782,15.766,21.01075009]
[1673318851131,25.364297,15.782,15.766,17.0]
[1673318851775,25.364297,15.782,15.767,3.19548834]
[1673318851981,25.364297,15.782,15.767,20.19548834]
[1673318852204,25.364297,15.782,15.769,23.75230696]
[1673318852612,25.364297,15.782,15.77,70.37]
[1673318852829,0.004297,15.782,15.772,4.61191152]
[1673318853048,0.004297,15.782,15.774,4.96854404]
[1673318853354,21.18,15.797,15.776,4.96854404]
[1673318853675,110.8503,15.798,15.777,20.0]
[1673318853890,25.347037,15.782,15.778,4.96854404]
[1673318854087,3.7e-05,15.782,15.778,4.96854404]
[1673318854509,21.18,15.797,15.78,20.0]
[1673318854717,70.0918,15.8,15.781,21.96854404]
[1673318854938,70.0918,15.8,15.782,20.0]
[1673318855250,0.009114,15.784,15.783,4.96854404]
[1673318855459,70.0918,15.8,15.784,20.0]
[1673318855774,70.0918,15.8,15.785,17.0]
[1673318855981,25.336581,15.788,15.782,45.36604821]
[1673318856198,47.52,15.787,15.763,20.0]
[1673318856603,103.0791408,15.787,15.763,67.6]
[1673318857024,20.0,15.786,15.763,67.6]
[1673318857331,47.53,15.785,15.764,20.0]
[1673318857555,55.5591408,15.786,15.764,20.0]
[1673318857760,25.336581,15.788,15.766,47.59]
[1673318857971,25.336581,15.788,15.769,19.0]
[1673318858186,58.19,15.787,15.769,19.0]
[1673318858949,41.19,15.787,15.769,19.0]
[1673318859350,41.19,15.787,15.77,17.0]
[1673318860196,41.19,15.787,15.769,19.0]
[1673318860407,46.526581,15.788,15.769,19.0]
[1673318860634,17.0,15.787,15.769,19.0]
[1673318861151,46.526581,15.788,15.77,20.0]
[1673318861349,25.336581,15.788,15.77,20.0]
[1673318861558,25.336581,15.788,15.771,20.0]
[1673318861872,25.336581,15.788,15.772,17.0]
[1673318863150,20.0,15.787,15.771,20.0]
[1673318863354,20.0,15.787,15.768,112.7792]
[1673318863355,47.53,15.786,15.768,112.7792]
[1673318863555,20.0,15.785,15.768,112.7792]
[1673318863765,47.53,15.784,15.768,112.7792]
[1673318863982,20.0,15.783,15.768,112.7792]
[1673318864310,20.0,15.785,15.769,20.0]
[1673318864940,20.0,15.785,15.77,17.0]
[1673318865262,47.53,15.786,15.77,17.0]
[1673318865469,25.336581,15.788,15.771,20.0]
[1673318865663,25.336581,15.788,15.772,64.57]
[1673318865984,25.336581,15.788,15.773,20.0]
[1673318866197,25.336581,15.788,15.774,47.56]
[1673318866430,25.336581,15.788,15.775,17.0]
[1673318866811,25.336581,15.788,15.773,20.0]
[1673318867143,25.336581,15.788,15.774,50.64527616]
[1673318867355,25.336581,15.788,15.775,17.0]
[1673318867549,25.336581,15.788,15.776,20.0]
[1673318867760,25.336581,15.788,15.777,17.0]
[1673318868815,25.336581,15.788,15.776,20.0]
[1673318869858,47.47,15.804,15.777,67.55]
[1673318870066,20.0,15.803,15.778,23.40895471]
[1673318870296,20.0,15.803,15.779,84.55]
[1673318870505,20.0,15.803,15.78,23.40895471]
[1673318870824,20.0,15.803,15.781,64.54]
[1673318871033,45.335984,15.803,15.782,23.62897012]
[1673318871246,20.0,15.802,15.783,17.0]
[1673318871465,17.0,15.801,15.784,3.62897012]
[1673318871787,20.0,15.8,15.783,17.0]
[1673318871994,17.0,15.799,15.783,17.0]
[1673318872209,64.49,15.799,15.783,17.0]
[1673318872610,47.49,15.799,15.783,17.0]
[1673318875045,47.49,15.799,15.78,20.0]
[1673318876618,47.49,15.799,15.782,20.0]
[1673318877135,25.335984,15.803,15.783,257.36877926]
[1673318877877,25.335984,15.803,15.784,37.0]
[1673318878193,25.335984,15.803,15.785,47.53]
[1673318878405,25.335984,15.803,15.786,37.0]
[1673318878624,25.335984,15.803,15.79,22.72]
[1673318878931,25.335984,15.803,15.791,64.51]
[1673318879141,25.335984,15.803,15.791,17.0]
[1673318879660,25.335984,15.803,15.79,47.51]
[1673318879875,25.335984,15.803,15.791,37.0]
[1673318880065,25.335984,15.803,15.792,47.51]
[1673318880500,25.335984,15.803,15.794,20.0]
[1673318880705,47.43,15.818,15.795,4.50007884]
[1673318880909,47.43,15.818,15.798,5.586613]
[1673318881120,5.7648714,15.819,15.8,5.77682124]
[1673318881477,5.7648714,15.819,15.801,17.0]
[1673318881757,5.7648714,15.819,15.802,6.14126372]
[1673318881979,31.0676384,15.819,15.803,20.0]
[1673318882168,31.0676384,15.819,15.804,17.0]
[1673318883024,31.0676384,15.819,15.803,20.0]
[1673318886278,47.43,15.818,15.802,6.14126372]
[1673318886595,84.43,15.818,15.788,47.52]
[1673318886801,84.43,15.818,15.786,111.8817]
[1673318886802,22.66,15.81,15.786,111.8817]
[1673318887009,64.46,15.809,15.786,131.8817]
[1673318887634,20.0,15.808,15.785,67.53]
[1673318887844,20.0,15.806,15.784,20.0]
[1673318888054,22.8,15.8,15.778,20.0]
[1673318888380,47.49,15.799,15.778,20.0]
[1673318888592,47.49,15.799,15.776,108.1237]
[1673318888593,17.0,15.798,15.776,108.1237]
[1673318888785,20.0,15.796,15.776,108.1237]
[1673318889011,84.5,15.795,15.776,108.1237]
[1673318890079,84.5,15.795,15.77,20.0]
[1673318890291,127.6420608,15.795,15.77,20.0]
[1673318890484,22.8,15.79,15.768,116.4141]
[1673318890694,47.52,15.789,15.768,116.4141]
[1673318891448,17.0,15.788,15.768,116.4141]
[1673318891656,17.0,15.788,15.769,20.0]
[1673318892071,47.52,15.789,15.769,20.0]
[1673318892806,46.68,15.789,15.771,20.0]
[1673318893215,6.57,15.79,15.772,17.0]
[1673318893425,46.64,15.794,15.772,17.0]
[1673318893653,20.0,15.793,15.772,17.0]
[1673318893856,22.8,15.78,15.766,37.24561659]
[1673318894068,47.55,15.779,15.753,20.0]
[1673318894270,67.55,15.779,15.753,20.0]
[1673318894480,67.55,15.779,15.754,47.62]
[1673318894705,67.55,15.779,15.755,20.0]
[1673318894895,60.1420608,15.778,15.755,20.0]
[1673318895106,67.55,15.777,15.755,20.0]
[1673318895321,17.0,15.776,15.755,20.0]
[1673318895531,67.56,15.775,15.755,20.0]
[1673318895736,47.56,15.775,15.755,20.0]
[1673318895955,47.52,15.788,15.756,47.62]
[1673318896175,22.99,15.78,15.757,20.0]
[1673318896388,22.99,15.78,15.758,47.61]
[1673318896599,22.99,15.78,15.759,20.0]
[1673318896797,22.99,15.78,15.76,20.0]
[1673318897218,47.55,15.779,15.759,20.0]
[1673318897421,47.55,15.779,15.758,20.0]
[1673318898069,17.0,15.778,15.758,20.0]
[1673318898260,47.55,15.777,15.758,20.0]
[1673318898471,47.55,15.777,15.755,20.0]
[1673318898679,37.0,15.776,15.755,20.0]
[1673318898895,47.56,15.775,15.755,20.0]
[1673318899102,37.0,15.774,15.755,20.0]
[1673318899318,47.57,15.773,15.755,20.0]
[1673318899526,20.0,15.772,15.755,20.0]
[1673318899751,47.56,15.775,15.755,20.0]
[1673318900058,47.55,15.779,15.757,20.0]
[1673318900252,47.55,15.779,15.758,17.0]
[1673318900459,47.55,15.779,15.759,20.0]
[1673318900676,22.99,15.78,15.761,20.0]
[1673318900908,22.99,15.78,15.762,17.0]
[1673318901632,47.54,15.782,15.762,17.0]
[1673318901846,20.0,15.781,15.763,47.6]
[1673318902034,20.0,15.781,15.764,20.0]
[1673318902246,20.0,15.781,15.765,17.0]
[1673318902461,47.52,15.787,15.766,20.0]
[1673318902671,22.67,15.79,15.768,20.0]
[1673318902886,22.67,15.79,15.769,20.0]
[1673318903103,22.67,15.79,15.77,67.57]
[1673318903313,47.49,15.798,15.77,67.57]
[1673318903519,18.5307897,15.797,15.771,17.0]
[1673318903736,22.66,15.79,15.771,17.0]
[1673318903947,47.52,15.789,15.771,17.0]
[1673318904155,47.52,15.789,15.77,20.0]
[1673318904367,17.0,15.788,15.771,17.0]
[1673318905109,1088.82649785,15.799,15.773,3.13107497]
[1673318905294,1088.82649785,15.799,15.775,3.36304541]
[1673318905510,1088.82649785,15.799,15.777,3.40383077]
[1673318905719,1088.82649785,15.799,15.779,3.40383077]
[1673318905930,47.46,15.808,15.779,3.40383077]
[1673318905931,47.46,15.808,15.781,5.53464403]
[1673318906141,20.0,15.807,15.783,5.53464403]
[1673318906349,47.47,15.806,15.785,5.53464403]
[1673318906579,20.0,15.805,15.786,17.0]
[1673318906798,20.0,15.805,15.787,5.53464403]
[1673318907108,20.0,15.805,15.788,17.0]
[1673318907303,20.0,15.807,15.788,17.0]
[1673318907517,47.47,15.806,15.788,17.0]
[1673318907927,47.46,15.809,15.789,20.0]
[1673318908149,47.44,15.816,15.789,20.0]
[1673318908361,47.43,15.817,15.79,64.51]
[1673318908577,47.43,15.817,15.791,20.0]
[1673318908793,47.43,15.817,15.792,47.51]
[1673318909000,47.43,15.817,15.792,64.51]
[1673318909211,47.43,15.817,15.792,17.0]
[1673318909531,47.43,15.817,15.793,20.0]
[1673318910247,20.0,15.816,15.794,17.0]
[1673318910456,47.44,15.815,15.794,17.0]
[1673318910778,20.0,15.814,15.794,17.0]
[1673318911195,20.0,15.816,15.793,20.0]
[1673318911405,47.44,15.815,15.793,20.0]
[1673318911617,20.0,15.814,15.793,20.0]
[1673318911931,20.0,15.816,15.793,20.0]
[1673318912255,64.44,15.815,15.793,67.51]
[1673318912465,20.0,15.814,15.793,20.0]
[1673318912872,17.0,15.813,15.793,20.0]
[1673318913086,20.0,15.812,15.793,20.0]
[1673318913501,20.0,15.812,15.795,20.0]
[1673318913734,20.0,15.816,15.796,17.0]
[1673318913924,64.44,15.815,15.796,17.0]
[1673318914133,20.0,15.814,15.796,17.0]
[1673318914561,20.0,15.814,15.795,20.0]
[1673318914775,20.0,15.814,15.794,20.0]
[1673318914776,47.45,15.813,15.793,20.0]
[1673318914990,22.6,15.81,15.786,47.53]
[1673318915310,47.46,15.809,15.784,184.5479]
[1673318915521,91.90790865,15.809,15.784,184.5479]
[1673318915841,17.0,15.808,15.784,184.5479]
[1673318916029,47.46,15.807,15.784,184.5479]
[1673318916656,47.46,15.809,15.786,47.53]
[1673318916867,17.0,15.808,15.787,20.0]
[1673318917089,47.46,15.807,15.787,20.0]
[1673318917509,47.46,15.808,15.787,20.0]
[1673318917832,17.0,15.807,15.787,20.0]
[1673318918036,47.46,15.808,15.792,17.0]
[1673318918239,47.46,15.809,15.792,17.0]
[1673318918444,17.0,15.808,15.792,17.0]
[1673318918655,47.46,15.807,15.792,17.0]
[1673318919072,47.46,15.807,15.787,20.0]
[1673318919287,37.0,15.806,15.787,20.0]
[1673318919497,47.47,15.805,15.787,20.0]
[1673318919716,37.0,15.804,15.787,20.0]
[1673318920345,20.0,15.804,15.787,20.0]
[1673318920563,20.0,15.805,15.788,17.0]
[1673318920886,20.0,15.808,15.788,17.0]
[1673318921070,47.46,15.807,15.787,20.0]
[1673318921276,20.0,15.806,15.787,20.0]
[1673318921493,47.47,15.805,15.787,20.0]
[1673318921706,20.0,15.804,15.787,20.0]
[1673318921919,64.48,15.803,15.787,20.0]
[1673318922137,20.0,15.802,15.787,20.0]
[1673318922770,20.0,15.805,15.787,20.0]
[1673318922969,47.47,15.804,15.788,17.0]
[1673318923179,20.0,15.803,15.788,17.0]
[1673318923604,20.0,15.808,15.788,17.0]
[1673318923816,22.67,15.81,15.789,20.0]
[1673318924035,113.856,15.828,15.79,87.31]
[1673318924355,20.0,15.824,15.792,20.0]
[1673318924569,46.6,15.823,15.793,70.18803766]
[1673318924882,46.6,15.823,15.793,90.18803766]
[1673318925077,46.6,15.823,15.794,20.0]
[1673318925282,46.6,15.823,15.795,70.17803766]
[1673318925608,46.6,15.824,15.797,5.67803766]
[1673318925809,46.6,15.824,15.799,5.95183039]
[1673318926018,46.59,15.827,15.801,6.04371599]
[1673318926446,46.59,15.827,15.803,6.04371599]
[1673318926665,46.59,15.827,15.806,6.04371599]
[1673318926876,46.59,15.827,15.807,17.0]
[1673318927497,20.0,15.826,15.807,17.0]
[1673318927709,46.74,15.825,15.802,6.04371599]
[1673318927915,46.74,15.825,15.804,6.04371599]
[1673318928119,20.0,15.824,15.806,6.04371599]
[1673318928334,46.74,15.823,15.807,17.0]
[1673318928558,46.74,15.825,15.807,17.0]
[1673318928746,46.73,15.827,15.807,17.0]
[1673318930552,46.73,15.827,15.808,41.7001474]
[1673318930757,46.73,15.827,15.809,17.0]
[1673318931084,46.73,15.827,15.81,61.7001474]
[1673318931298,46.73,15.829,15.811,17.0]
[1673318931623,20.0,15.834,15.812,41.7001474]
[1673318931927,46.72,15.833,15.813,17.0]
[1673318932115,20.0,15.832,15.813,17.0]
[1673318932328,46.73,15.831,15.813,17.0]
[1673318932652,20.0,15.83,15.813,17.0]
[1673318932863,46.74,15.829,15.813,17.0]
[1673318933606,46.73,15.831,15.813,17.0]
[1673318933797,20.0,15.83,15.813,17.0]
[1673318934033,46.74,15.829,15.813,17.0]
[1673318934239,46.73,15.831,15.813,17.0]
[1673318934429,46.72,15.836,15.814,86.04384293]
[1673318934633,46.71,15.839,15.815,22.83071812]
[1673318934854,20.0,15.838,15.816,20.0]
[1673318935069,45.22,15.837,15.817,22.83071812]
[1673318935278,20.0,15.836,15.817,22.83071812]
[1673318935488,46.78,15.835,15.817,22.83071812]
[1673318935914,20.0,15.833,15.817,17.0]
[1673318936128,63.79,15.832,15.817,17.0]
[1673318936862,63.79,15.832,15.802,20.0]
[1673318936863,185.4,15.829,15.802,20.0]
[1673318937076,185.4,15.829,15.786,103.93314198]
[1673318937077,17.0,15.817,15.792,20.0]
[1673318937390,22.8,15.81,15.792,20.0]
[1673318937910,77.19715134,15.809,15.792,20.0]
[1673318938125,17.0,15.808,15.792,20.0]
[1673318938433,77.19715134,15.807,15.788,20.0]
[1673318938651,76.19715134,15.807,15.788,20.0]
[1673318938838,69.37623189,15.806,15.783,47.54]
[1673318939046,22.66,15.8,15.782,20.0]
[1673318939266,22.66,15.8,15.779,20.0]
[1673318939487,22.66,15.8,15.773,20.0]
[1673318939488,164.90139378,15.799,15.773,20.0]
[1673318939681,17.0,15.798,15.774,47.56]
[1673318939887,65.32,15.797,15.773,20.0]
[1673318940098,20.0,15.796,15.773,20.0]
[1673318940316,62.36,15.795,15.773,20.0]
[1673318940533,20.0,15.794,15.773,20.0]
[1673318940751,22.8,15.79,15.772,20.0]
[1673318940945,65.48,15.789,15.772,20.0]
[1673318941157,65.48,15.789,15.769,20.0]
[1673318941376,99.66139378,15.789,15.769,38.60384293]
[1673318941584,176.52521179,15.789,15.769,20.0]
[1673318941791,221.75521179,15.789,15.769,20.0]
[1673318942218,17.0,15.788,15.769,20.0]
[1673318942415,45.16,15.787,15.768,111.6784]
[1673318942620,156.52521179,15.787,15.768,111.6784]
[1673318942858,156.52521179,15.786,15.768,111.6784]
[1673318943043,156.52521179,15.786,15.769,20.0]
[1673318943259,76.86381801,15.785,15.768,111.6784]
[1673318943777,20.0,15.789,15.769,18.60384293]
[1673318944214,65.35,15.789,15.769,38.60384293]
[1673318944408,20.0,15.789,15.769,38.60384293]
[1673318944620,65.35,15.789,15.77,20.0]
[1673318945471,17.0,15.788,15.77,20.0]
[1673318945792,17.0,15.788,15.765,20.0]
[1673318945989,65.19,15.787,15.765,20.0]
[1673318946193,65.19,15.787,15.763,20.0]
[1673318946194,22.6,15.78,15.763,20.0]
[1673318946403,82.6,15.779,15.763,20.0]
[1673318946622,65.6,15.779,15.763,20.0]
[1673318946836,20.0,15.779,15.763,20.0]
[1673318947583,65.74,15.779,15.763,20.0]
[1673318947981,20.0,15.779,15.763,20.0]
[1673318948197,17.0,15.778,15.763,20.0]
[1673318948723,20.0,15.779,15.763,20.0]
[1673318948934,17.0,15.778,15.763,20.0]
[1673318950856,46.07,15.779,15.763,20.0]
[1673318952219,17.0,15.778,15.763,20.0]
[1673318954007,46.07,15.779,15.763,20.0]
[1673318954531,22.6,15.78,15.763,20.0]
[1673318954742,47.49,15.779,15.763,20.0]
[1673318955348,22.6,15.78,15.764,17.0]
[1673318955562,47.51,15.789,15.764,17.0]
[1673318955995,20.0,15.788,15.765,38.09027284]
[1673318956192,67.41,15.787,15.766,17.0]
[1673318957799,67.41,15.787,15.766,35.09027284]
[1673318957983,67.41,15.787,15.767,20.0]
[1673318958310,67.41,15.787,15.768,17.0]
[1673318958535,20.0,15.787,15.768,17.0]
[1673318958724,20.0,15.788,15.768,17.0]
[1673318958937,47.14,15.787,15.768,17.0]
[1673318959146,20.0,15.786,15.768,17.0]
[1673318959560,20.0,15.786,15.769,18.09027284]
[1673318959776,20.0,15.788,15.769,18.09027284]
[1673318960100,47.24,15.787,15.767,20.0]
[1673318960331,20.0,15.786,15.767,20.0]
[1673318960515,47.22,15.793,15.768,85.67027284]
[1673318960739,20.0,15.792,15.77,20.0]
[1673318960925,20.0,15.792,15.772,20.0]
[1673318961262,20.0,15.792,15.773,3.84565761]
[1673318961447,22.8,15.79,15.772,3.84565761]
[1673318961784,22.8,15.79,15.768,108.8036]
[1673318961785,86.17061681,15.789,15.768,108.8036]
[1673318962105,20.0,15.788,15.768,108.8036]
[1673318962411,64.5,15.787,15.768,108.8036]
[1673318962621,20.0,15.786,15.762,43.85514424]
[1673318962813,64.53,15.785,15.762,25.7648714]
[1673318963024,20.0,15.784,15.762,25.7648714]
[1673318963248,64.54,15.783,15.762,25.7648714]
[1673318963456,22.58,15.78,15.762,25.7648714]
[1673318964858,22.58,15.78,15.766,17.0]
[1673318965065,47.54,15.783,15.766,17.0]
[1673318965385,20.0,15.782,15.766,17.0]
[1673318965995,20.0,15.786,15.766,17.0]
[1673318966207,64.53,15.785,15.766,17.0]
[1673318966431,20.0,15.784,15.766,17.0]
[1673318966645,47.54,15.783,15.762,25.7648714]
[1673318966859,37.0,15.782,15.762,25.7648714]
[1673318967910,37.0,15.782,15.766,17.0]
[1673318968223,37.0,15.782,15.762,25.7648714]
[1673318968433,47.54,15.781,15.762,25.7648714]
[1673318968631,20.0,15.78,15.762,25.7648714]
[1673318969381,20.0,15.78,15.766,17.0]
[1673318969578,20.0,15.781,15.766,17.0]
[1673318969791,17.0,15.78,15.762,25.7648714]
[1673318969995,17.0,15.78,15.763,20.0]
[1673318970205,67.55,15.779,15.762,5.7648714]
[1673318970415,22.8,15.77,15.762,5.7648714]
[1673318972847,47.56,15.774,15.762,5.7648714]
[1673318973066,20.0,15.773,15.762,5.7648714]
[1673318973667,20.0,15.775,15.762,5.7648714]
[1673318974317,20.0,15.776,15.762,5.7648714]
[1673318974638,44.16674191,15.784,15.763,47.6]
[1673318974841,20.0,15.783,15.765,20.0]
[1673318975160,20.0,15.783,15.766,17.0]
[1673318975387,47.53,15.785,15.765,20.0]
[1673318975561,19.00061681,15.783,15.765,20.0]
[1673318976006,63.16735872,15.783,15.765,20.0]
[1673318976214,20.0,15.781,15.765,20.0]
[1673318976400,17.0,15.78,15.765,20.0]
[1673318977873,17.0,15.781,15.762,5.7648714]
[1673318978193,20.0,15.78,15.762,5.7648714]
[1673318978404,17.0,15.779,15.762,5.7648714]
[1673318978733,20.0,15.778,15.762,5.7648714]
[1673318979048,17.0,15.777,15.762,5.7648714]
[1673318979275,20.0,15.776,15.762,5.7648714]
[1673318979488,22.76,15.78,15.762,5.7648714]
[1673318979706,22.76,15.78,15.763,20.0]
[1673318979889,22.76,15.78,15.763,67.6]
[1673318980094,22.76,15.78,15.764,17.0]
[1673318980535,22.76,15.78,15.762,5.7648714]
[1673318980750,47.55,15.779,15.762,5.7648714]
[1673318981252,176.70735872,15.78,15.762,5.7648714]
[1673318981463,64.14696512,15.778,15.762,5.7648714]
[1673318981687,22.8,15.77,15.762,5.7648714]
[1673318989564,47.56,15.774,15.762,5.7648714]
[1673318989767,20.0,15.773,15.762,5.7648714]
[1673318990293,20.0,15.775,15.762,5.7648714]
[1673318992416,22.8,15.77,15.753,33.03194502]
[1673318992608,22.8,15.77,15.754,20.0]
[1673318993131,22.8,15.77,15.753,53.03194502]
[1673318993132,19.00061681,15.769,15.753,53.03194502]
[1673318993349,19.00061681,15.769,15.75,66.06389003]
[1673318993350,114.0,15.76,15.75,66.06389003]
[1673318993562,47.61,15.759,15.75,66.06389003]
[1673318993775,22.8,15.76,15.751,20.0]
[1673318993978,19.00061681,15.76,15.751,20.0]
[1673318994299,17.0,15.759,15.75,66.06389003]
[1673318994624,20.0,15.758,15.75,66.06389003]
[1673318994830,64.61,15.757,15.75,66.06389003]
[1673318995051,20.0,15.756,15.75,66.06389003]
[1673318995355,17.0,15.755,15.75,66.06389003]
[1673318995666,100.674955,15.754,15.75,66.06389003]
[1673318995990,118.94195653,15.753,15.75,66.06389003]
[1673318996202,20.0,15.752,15.75,66.06389003]
[1673318996509,20.0,15.752,15.75,14.83199003]
[1673318996510,51.45521119,15.751,15.75,14.83199003]
[1673318996720,131.72282953,15.751,15.747,132.12778006]
[1673318997038,14.83199003,15.749,15.747,90.44968006]
[1673318997233,84.64,15.748,15.747,80.04808006]
[1673318997774,158.39588209,15.748,15.747,76.82918006]
[1673318997979,177.3964989,15.748,15.747,24.59388006]
[1673318998606,129.7564989,15.748,15.747,8.006e-05]
[1673318998922,177.3964989,15.748,15.747,8.006e-05]
[1673318999136,177.3964989,15.748,15.737,5.7648714]
[1673318999343,20.0,15.747,15.737,5.7648714]
[1673318999556,20.0,15.745,15.737,5.7648714]
[1673318999764,20.0,15.744,15.737,5.7648714]
[1673319000083,19.00061681,15.745,15.737,5.7648714]
[1673319000296,22.61,15.75,15.737,5.7648714]
[1673319000623,20.0,15.748,15.737,5.7648714]
[1673319000932,66.64061681,15.747,15.737,5.7648714]
[1673319001135,20.0,15.746,15.737,5.7648714]
[1673319001347,17.0,15.745,15.737,5.7648714]
[1673319001559,20.0,15.744,15.737,5.7648714]
[1673319001779,17.0,15.743,15.737,5.7648714]
[1673319001983,56.00061681,15.743,15.737,5.7648714]
[1673319002406,20.0,15.743,15.737,5.7648714]
[1673319003020,39.00061681,15.743,15.737,5.7648714]
[1673319003237,20.0,15.742,15.737,5.7648714]
[1673319003669,19.00061681,15.741,15.737,5.7648714]
[1673319004088,20.0,15.74,15.737,5.7648714]
[1673319004702,19.00061681,15.742,15.737,5.7648714]
[1673319005014,20.0,15.741,15.737,5.7648714]
[1673319005433,39.00061681,15.741,15.737,5.7648714]
[1673319005869,20.0,15.739,15.737,7.14e-05]
[1673319006088,47.67,15.738,15.737,7.14e-05]
[1673319006277,139.25271175,15.738,15.737,7.14e-05]
[1673319006488,140.58956932,15.738,15.737,7.14e-05]
[1673319006909,148.72308382,15.738,15.737,7.14e-05]
[1673319007131,209.7041931,15.738,15.737,7.14e-05]
[1673319007340,20.0,15.737,15.719,20.0]
[1673319007552,128.52,15.73,15.716,107.66470173]
[1673319007976,128.52,15.73,15.718,108.19876228]
[1673319008188,25.81,15.73,15.719,20.0]
[1673319009430,25.81,15.73,15.721,20.0]
[1673319013977,25.81,15.73,15.719,19.5]
[1673319015662,44.81061681,15.73,15.719,19.5]
[1673319016702,25.81,15.73,15.719,19.5]
[1673319017341,20.0,15.728,15.714,103.39209356]
[1673319017536,20.0,15.727,15.714,103.39209356]
[1673319017745,39.00061681,15.727,15.714,103.39209356]
[1673319017955,19.00061681,15.726,15.714,103.39209356]
[1673319018167,20.0,15.725,15.714,103.39209356]
[1673319018381,20.0,15.725,15.716,107.66470173]
[1673319018591,19.00061681,15.724,15.716,107.66470173]
[1673319019021,19.00061681,15.724,15.715,20.0]
[1673319020163,129.02,15.73,15.715,20.0]
[1673319020401,25.98,15.73,15.717,20.0]
[1673319022269,44.98061681,15.73,15.717,20.0]
[1673319023026,17.0,15.729,15.717,20.0]
[1673319023334,19.00061681,15.728,15.717,20.0]
[1673319023544,17.0,15.727,15.715,108.3841]
[1673319023858,39.00061681,15.726,15.715,108.3841]
[1673319024288,19.00061681,15.725,15.715,108.3841]
[1673319024617,20.0,15.724,15.715,108.3841]